bitfinex/quotes_BTCUSD_20241010
["timestamp","ask_amount","ask_price","bid_price","bid_amount"]
[1728572204714,17.71185484,60664.0,60663.0,0.32568264]
[1728572204954,17.71185484,60664.0,60663.0,0.33968264]
[1728572205174,17.71185484,60664.0,60663.0,0.32568264]
[1728572206392,17.71185484,60664.0,60663.0,0.35368264]
[1728572206636,17.71185484,60664.0,60663.0,0.33968264]
[1728572206857,17.71185484,60664.0,60663.0,0.35368264]
[1728572207079,17.71185484,60664.0,60663.0,0.33968264]
[1728572207303,17.71185484,60664.0,60663.0,0.35368264]
[1728572209233,17.71185484,60664.0,60663.0,0.54173697]
[1728572209477,17.71185484,60664.0,60663.0,0.72573697]
[1728572209721,17.71158951,60664.0,60663.0,0.72573697]
[1728572209939,17.71240651,60664.0,60663.0,0.72573697]
[1728572210163,17.71240651,60664.0,60663.0,0.74873697]
[1728572210387,17.71240651,60664.0,60663.0,0.75073697]
[1728572212075,17.71240651,60664.0,60663.0,0.73673697]
[1728572212513,17.71240651,60664.0,60663.0,0.73473697]
[1728572212730,17.71240651,60664.0,60663.0,0.72573697]
[1728572212970,17.71240651,60664.0,60663.0,0.71173697]
[1728572213183,17.71240651,60664.0,60663.0,0.72573697]
[1728572213408,17.71240651,60664.0,60663.0,0.73973697]
[1728572213694,17.71240651,60664.0,60663.0,0.69773697]
[1728572213914,17.71240651,60664.0,60663.0,0.71173697]
[1728572214599,17.71240651,60664.0,60663.0,0.72573697]
[1728572215730,17.71240651,60664.0,60663.0,0.71173697]
[1728572216204,17.71240651,60664.0,60663.0,0.72573697]
[1728572216638,17.71240651,60664.0,60663.0,0.71173697]
[1728572216864,17.71240651,60664.0,60663.0,0.72573697]
[1728572217086,17.71240651,60664.0,60663.0,0.71373697]
[1728572217307,17.71240651,60664.0,60663.0,0.71173697]
[1728572217968,17.71240651,60664.0,60663.0,0.69773697]
[1728572218184,17.71240651,60664.0,60663.0,0.71173697]
[1728572218889,17.71240651,60664.0,60663.0,0.73473697]
[1728572219589,17.71240651,60664.0,60663.0,0.75073697]
[1728572220287,17.71240651,60664.0,60663.0,0.73673697]
[1728572220513,17.71240651,60664.0,60663.0,0.75073697]
[1728572220973,17.71240651,60664.0,60663.0,0.73673697]
[1728572221439,17.71240651,60664.0,60663.0,0.75073697]
[1728572222626,17.71240651,60664.0,60663.0,0.73837097]
[1728572222856,17.71240651,60664.0,60663.0,0.72437097]
[1728572223069,17.71240651,60664.0,60663.0,0.73837097]
[1728572223300,17.71240651,60664.0,60663.0,0.75237097]
[1728572223530,17.71240651,60664.0,60663.0,0.75037097]
[1728572223746,17.71240651,60664.0,60663.0,0.64837097]
[1728572224473,17.71240651,60664.0,60663.0,0.65037097]
[1728572224725,17.71240651,60664.0,60663.0,0.88797097]
[1728572224726,16.97959022,60664.0,60663.0,0.88797097]
[1728572224978,16.94271812,60664.0,60663.0,0.88797097]
[1728572225273,16.78031942,60664.0,60663.0,0.91097097]
[1728572225479,15.71448342,60664.0,60663.0,0.91097097]
[1728572225751,15.71448342,60664.0,60663.0,1.2729253]
[1728572225752,14.90139733,60664.0,60663.0,1.2729253]
[1728572225996,11.39564017,60664.0,60663.0,1.70559566]
[1728572226234,3.39024107,60664.0,60663.0,2.07306412]
[1728572226473,3.39024107,60664.0,60663.0,1.45686113]
[1728572226474,2.34236856,60664.0,60663.0,1.45686113]
[1728572226705,2.34236856,60664.0,60663.0,1.44286113]
[1728572226706,2.148871,60664.0,60663.0,1.44286113]
[1728572226940,2.148871,60664.0,60663.0,1.67365595]
[1728572227181,2.148871,60664.0,60663.0,1.69265595]
[1728572227421,2.05669344,60664.0,60663.0,1.69265595]
[1728572227668,1.77728054,60664.0,60663.0,1.79990343]
[1728572228133,1.5632555,60664.0,60663.0,1.77194213]
[1728572228372,1.5632555,60664.0,60663.0,1.87355428]
[1728572228603,1.5632555,60664.0,60663.0,1.83631571]
[1728572228604,1.21675703,60664.0,60663.0,1.83631571]
[1728572228838,1.21675703,60664.0,60663.0,1.85537571]
[1728572228839,0.98953811,60664.0,60663.0,1.85537571]
[1728572229135,0.98953811,60664.0,60663.0,1.85527571]
[1728572229371,0.98953811,60664.0,60663.0,1.83091571]
[1728572229601,0.82469811,60664.0,60663.0,1.81641571]
[1728572229828,0.82443275,60664.0,60663.0,1.82531571]
[1728572230060,0.82443275,60664.0,60663.0,1.84411571]
[1728572230061,0.80034912,60664.0,60663.0,1.84411571]
[1728572230296,0.80034912,60664.0,60663.0,1.84391571]
[1728572230523,0.63550912,60664.0,60663.0,1.92869571]
[1728572230753,0.58973512,60664.0,60663.0,1.84331571]
[1728572231000,0.37122622,60664.0,60663.0,1.84311571]
[1728572231236,0.35021622,60664.0,60663.0,1.65466138]
[1728572231476,0.22986222,60664.0,60663.0,1.64046138]
[1728572231717,0.24718917,60671.0,60670.0,0.294826]
[1728572231957,0.24718917,60671.0,60670.0,1.43905811]
[1728572232210,0.000817,60671.0,60670.0,1.40775104]
[1728572232448,0.000817,60671.0,60670.0,1.40755104]
[1728572232710,0.000817,60671.0,60670.0,1.0089666]
[1728572232961,0.075,60689.0,60684.0,0.164788]
[1728572232962,0.4344265,60685.0,60684.0,0.164788]
[1728572233202,0.4344265,60685.0,60684.0,0.17652438]
[1728572233203,0.24637217,60685.0,60684.0,0.17652438]
[1728572233431,0.18805433,60688.0,60687.0,0.164779]
[1728572233670,0.075,60689.0,60688.0,0.164777]
[1728572233909,0.075,60689.0,60688.0,0.32561464]
[1728572234148,0.075,60689.0,60688.0,0.33731471]
[1728572234859,0.075,60689.0,60688.0,0.35131471]
[1728572235841,0.075,60689.0,60688.0,0.36531471]
[1728572237718,0.075,60689.0,60688.0,0.20053771]
[1728572237940,0.075,60689.0,60688.0,0.36531471]
[1728572238173,0.075,60689.0,60688.0,0.20053771]
[1728572238419,0.0761,60689.0,60688.0,0.20053771]
[1728572238678,0.240874,60689.0,60688.0,0.20053771]
[1728572238909,0.436274,60689.0,60688.0,0.20053771]
[1728572239140,0.436274,60689.0,60688.0,0.18883764]
[1728572239375,0.45845433,60689.0,60688.0,0.20055633]
[1728572239609,0.45955433,60689.0,60688.0,0.18883764]
[1728572240093,0.45955433,60689.0,60688.0,0.17255982]
[1728572240094,0.45845433,60689.0,60688.0,0.17255982]
[1728572240337,0.45955433,60689.0,60688.0,0.17483764]
[1728572240568,0.45955433,60689.0,60688.0,0.20055982]
[1728572241041,0.2704,60689.0,60688.0,0.36533682]
[1728572242734,0.23326105,60689.0,60688.0,0.36533682]
[1728572243697,0.000817,60690.0,60689.0,0.164774]
[1728572243951,0.000817,60690.0,60689.0,0.73480552]
[1728572244193,0.0001069,60696.0,60695.0,0.170658]
[1728572244446,0.0001069,60696.0,60695.0,0.4661773]
[1728572244685,0.0001069,60696.0,60695.0,0.64797935]
[1728572245410,0.0001069,60696.0,60695.0,0.77011526]
[1728572245638,0.0001069,60696.0,60695.0,0.78410667]
[1728572245872,0.0001069,60696.0,60695.0,0.66107935]
[1728572246098,0.0001069,60696.0,60695.0,0.77350462]
[1728572246346,0.0001069,60696.0,60695.0,0.67493918]
[1728572246598,0.0001069,60696.0,60695.0,0.51947755]
[1728572246837,0.0009239,60696.0,60695.0,0.49147755]
[1728572247083,0.0009239,60696.0,60695.0,0.50547755]
[1728572247565,0.0009239,60696.0,60695.0,0.4422773]
[1728572248009,0.0009239,60696.0,60695.0,0.4562773]
[1728572248723,0.0009239,60696.0,60695.0,0.4702773]
[1728572248951,0.0009239,60696.0,60695.0,0.4562773]
[1728572249922,0.0009239,60696.0,60695.0,0.4702773]
[1728572250182,0.0009239,60696.0,60695.0,0.49410768]
[1728572251148,0.0009239,60696.0,60695.0,0.48910768]
[1728572251405,0.0009239,60696.0,60695.0,0.2005193]
[1728572251406,0.2438789,60696.0,60695.0,0.2005193]
[1728572251649,0.2737239,60696.0,60695.0,0.2005193]
[1728572251874,0.62653323,60696.0,60695.0,0.2005193]
[1728572252366,0.62653323,60696.0,60695.0,0.18883764]
[1728572252620,0.78733984,60696.0,60695.0,0.014]
[1728572253093,0.78733984,60696.0,60695.0,0.022]
[1728572253094,0.62653323,60696.0,60695.0,0.022]
[1728572253319,0.62653323,60696.0,60695.0,0.014]
[1728572253545,0.62653323,60696.0,60695.0,0.022]
[1728572253775,0.62653323,60696.0,60695.0,0.008]
[1728572255223,0.62653323,60696.0,60695.0,0.017]
[1728572255935,0.62653323,60696.0,60695.0,0.008]
[1728572256434,0.62653323,60696.0,60678.0,0.24800617]
[1728572256435,0.00083474,60680.0,60678.0,0.24800617]
[1728572256662,0.00083474,60680.0,60679.0,0.164801]
[1728572256884,0.18805433,60679.0,60678.0,0.41281017]
[1728572257116,0.18805433,60679.0,60678.0,0.001634]
[1728572257584,0.18888907,60679.0,60678.0,0.001634]
[1728572257586,0.18888907,60679.0,60678.0,0.16247164]
[1728572257838,0.18805433,60679.0,60678.0,0.32727564]
[1728572258545,0.18805433,60679.0,60678.0,0.16247164]
[1728572258790,0.18888907,60679.0,60678.0,0.17647164]
[1728572259030,0.18805433,60679.0,60678.0,0.16247164]
[1728572259501,0.18805433,60679.0,60678.0,0.34918678]
[1728572260930,0.18905433,60679.0,60678.0,0.18538278]
[1728572261162,0.18888907,60679.0,60678.0,0.18738278]
[1728572261634,0.18805433,60679.0,60678.0,0.18738278]
[1728572262087,0.18805433,60679.0,60678.0,0.19838278]
[1728572262088,0.18905433,60679.0,60678.0,0.19838278]
[1728572262326,0.18905433,60679.0,60678.0,0.18647164]
[1728572262571,0.18905433,60679.0,60678.0,0.19839123]
[1728572263704,0.18988907,60679.0,60678.0,0.19839123]
[1728572263946,0.18905433,60679.0,60678.0,0.19839123]
[1728572264196,0.18905433,60679.0,60678.0,0.18647164]
[1728572264427,0.18905433,60679.0,60678.0,0.19839584]
[1728572266137,0.18988907,60679.0,60678.0,0.19839584]
[1728572266354,0.35469007,60679.0,60678.0,0.19839584]
[1728572266576,0.18905433,60679.0,60678.0,0.18647164]
[1728572266802,0.35469007,60679.0,60678.0,0.1984425]
[1728572267235,0.43059007,60679.0,60678.0,0.1984425]
[1728572267474,0.43059007,60679.0,60678.0,0.03760486]
[1728572267475,0.94690181,60679.0,60678.0,0.03760486]
[1728572267731,0.8184444,60679.0,60678.0,0.03361457]
[1728572267948,0.8184444,60679.0,60678.0,0.025634]
[1728572269981,0.8184444,60679.0,60664.0,0.24637217]
[1728572269982,0.00083474,60665.0,60664.0,0.24637217]
[1728572270273,0.2617,60665.0,60664.0,0.58013625]
[1728572270678,0.2617,60665.0,60664.0,0.33376408]
[1728572270904,0.2617,60665.0,60664.0,0.16892208]
[1728572271139,0.26253474,60665.0,60664.0,0.16892208]
[1728572271679,0.00083474,60664.0,60663.0,0.001634]
[1728572271896,0.43663107,60664.0,60663.0,0.16247164]
[1728572272799,0.27178907,60664.0,60663.0,0.16247164]
[1728572273023,0.43663107,60664.0,60663.0,0.16247164]
[1728572273685,0.27178907,60664.0,60663.0,0.16247164]
[1728572274164,0.27278907,60664.0,60663.0,0.17547164]
[1728572274589,0.27378907,60664.0,60663.0,0.19058028]
[1728572275785,0.43863107,60664.0,60663.0,0.19058028]
[1728572276256,0.27378907,60664.0,60663.0,0.19058028]
[1728572276469,0.43863107,60664.0,60663.0,0.19058028]
[1728572277160,0.27378907,60664.0,60663.0,0.19058028]
[1728572277408,0.43863107,60664.0,60663.0,0.19058028]
[1728572279708,0.56662808,60664.0,60663.0,0.02974264]
[1728572280177,0.43863107,60664.0,60663.0,0.021634]
[1728572280641,0.43763107,60664.0,60663.0,0.008634]
[1728572280870,0.68400324,60664.0,60663.0,0.008634]
[1728572281090,0.63603107,60664.0,60663.0,0.012634]
[1728572281307,0.76936529,60664.0,60663.0,0.005634]
[1728572281535,0.76936529,60664.0,60663.0,0.001634]
[1728572281754,0.76936529,60664.0,60663.0,0.002634]
[1728572281981,0.76936529,60664.0,60663.0,0.005634]
[1728572282197,0.63503107,60664.0,60663.0,0.005634]
[1728572282445,0.63503107,60664.0,60663.0,0.002634]
[1728572282654,0.63503107,60664.0,60663.0,0.001634]
[1728572282888,0.63503107,60664.0,60663.0,0.003634]
[1728572283190,0.63503107,60664.0,60663.0,0.16447164]
[1728572283191,0.2813,60664.0,60663.0,0.16447164]
[1728572283395,0.44697674,60664.0,60663.0,0.16447164]
[1728572283622,0.28213474,60664.0,60663.0,0.16447164]
[1728572283854,0.2813,60664.0,60663.0,0.16447164]
[1728572284310,0.44697674,60664.0,60663.0,0.16447164]
[1728572284567,0.44697674,60664.0,60663.0,0.16247164]
[1728572284797,0.44797674,60664.0,60663.0,0.16847164]
[1728572285037,0.448142,60664.0,60663.0,0.17447164]
[1728572285264,0.448142,60664.0,60663.0,0.16847164]
[1728572285265,0.2823,60664.0,60663.0,0.16847164]
[1728572285486,0.2833,60664.0,60663.0,0.17647164]
[1728572285731,0.2823,60664.0,60663.0,0.17047164]
[1728572285976,0.447142,60664.0,60663.0,0.17047164]
[1728572286188,0.2823,60664.0,60663.0,0.17047164]
[1728572287185,0.2823,60664.0,60663.0,0.33531664]
[1728572287660,0.2833,60664.0,60663.0,0.34631664]
[1728572288349,0.2833,60664.0,60663.0,0.18147164]
[1728572288583,0.2833,60664.0,60663.0,0.34631664]
[1728572289280,0.0849,60664.0,60663.0,0.34631664]
[1728572289521,0.002,60664.0,60663.0,0.34631664]
[1728572289775,0.002,60664.0,60663.0,0.18147164]
[1728572289998,0.002,60664.0,60663.0,0.34631664]
[1728572290729,0.002,60664.0,60663.0,0.18147164]
[1728572290730,0.35573107,60664.0,60663.0,0.18147164]
[1728572291428,0.35573107,60664.0,60663.0,0.020634]
[1728572292329,0.62493107,60664.0,60663.0,0.020634]
[1728572292575,0.62493107,60664.0,60663.0,0.0319101]
[1728572292835,0.62493107,60664.0,60663.0,0.020634]
[1728572293093,0.94141331,60664.0,60663.0,0.020634]
[1728572293786,0.94641331,60664.0,60663.0,0.020634]
[1728572294004,0.94541331,60664.0,60663.0,0.009634]
[1728572294220,0.43071174,60651.0,60650.0,0.24637217]
[1728572294444,0.61876607,60651.0,60650.0,0.24637217]
[1728572294933,0.00083474,60647.0,60643.0,0.24637217]
[1728572295161,0.18805433,60646.0,60645.0,0.164894]
[1728572295391,0.18805433,60646.0,60645.0,0.32573164]
[1728572296048,0.18805433,60646.0,60645.0,0.16083764]
[1728572296049,0.18888907,60646.0,60645.0,0.16083764]
[1728572296319,0.18888907,60646.0,60645.0,0.16783764]
[1728572296544,0.18988907,60646.0,60645.0,0.16783764]
[1728572296759,0.35478007,60646.0,60645.0,0.16783764]
[1728572296981,0.18988907,60646.0,60645.0,0.16783764]
[1728572297250,0.35478007,60646.0,60645.0,0.16783764]
[1728572297491,0.35478007,60646.0,60645.0,0.007]
[1728572297708,0.35478007,60646.0,60640.0,0.216539]
[1728572297709,0.00083474,60641.0,60640.0,0.216539]
[1728572297941,0.68106088,60641.0,60640.0,0.001634]
[1728572299114,0.63019307,60641.0,60640.0,0.001634]
[1728572299575,0.62919307,60641.0,60640.0,0.001634]
[1728572300315,0.44113874,60641.0,60640.0,0.001634]
[1728572300995,0.44413874,60641.0,60640.0,0.001634]
[1728572301442,0.2804,60641.0,60640.0,0.001634]
[1728572301659,0.27623474,60641.0,60640.0,0.001634]
[1728572301873,0.44113874,60641.0,60640.0,0.006634]
[1728572302562,0.57001705,60641.0,60640.0,0.001634]
[1728572302817,0.44113874,60641.0,60640.0,0.001634]
[1728572303038,0.44213874,60641.0,60640.0,0.001634]
[1728572303265,0.44113874,60641.0,60640.0,0.001634]
[1728572303744,0.44213874,60641.0,60640.0,0.009634]
[1728572303989,0.58982248,60641.0,60640.0,0.009634]
[1728572304223,0.58982248,60641.0,60640.0,0.001634]
[1728572304224,0.58882248,60641.0,60640.0,0.001634]
[1728572304448,0.58882248,60641.0,60640.0,0.005634]
[1728572305388,0.58882248,60641.0,60640.0,0.001634]
[1728572305869,0.68882248,60641.0,60640.0,0.001634]
[1728572306406,0.68982248,60641.0,60640.0,0.001634]
[1728572306635,0.69382248,60641.0,60640.0,0.001634]
[1728572306858,0.70082248,60641.0,60640.0,0.001634]
[1728572307785,0.70182248,60641.0,60640.0,0.001634]
[1728572308285,0.44813874,60641.0,60640.0,0.001634]
[1728572308523,0.44513874,60641.0,60640.0,0.001634]
[1728572309001,0.45113874,60641.0,60640.0,0.001634]
[1728572309241,0.44113874,60641.0,60640.0,0.001634]
[1728572309462,0.44213874,60641.0,60640.0,0.001634]
[1728572309683,0.44313874,60641.0,60640.0,0.001634]
[1728572311121,0.57221705,60641.0,60640.0,0.001634]
[1728572311346,0.44213874,60641.0,60640.0,0.001634]
[1728572311585,0.44313874,60641.0,60640.0,0.007634]
[1728572311838,0.44213874,60641.0,60640.0,0.007634]
[1728572312078,0.44213874,60641.0,60640.0,0.001634]
[1728572312079,0.44113874,60641.0,60640.0,0.001634]
[1728572312304,0.44213874,60641.0,60640.0,0.001634]
[1728572312551,0.44113874,60641.0,60640.0,0.001634]
[1728572312798,0.44213874,60641.0,60640.0,0.001634]
[1728572313048,0.44313874,60641.0,60640.0,0.001634]
[1728572320395,0.44313874,60641.0,60640.0,0.16247164]
[1728572320396,0.2774,60641.0,60640.0,0.16247164]
[1728572320648,0.2774,60641.0,60640.0,0.32737864]
[1728572320649,0.002,60641.0,60640.0,0.32737864]
[1728572320870,0.19005433,60641.0,60640.0,0.32737864]
[1728572321095,0.19088907,60641.0,60640.0,0.32737864]
[1728572321544,0.19088907,60641.0,60640.0,0.16247164]
[1728572321798,0.35579307,60641.0,60640.0,0.16247164]
[1728572322022,0.35379307,60641.0,60640.0,0.16247164]
[1728572322496,0.18905433,60641.0,60640.0,0.33237864]
[1728572322748,0.18805433,60641.0,60640.0,0.33237864]
[1728572322991,0.18805433,60641.0,60640.0,0.16747164]
[1728572323231,0.18988907,60641.0,60640.0,0.16747164]
[1728572323713,0.18988907,60641.0,60640.0,0.16247164]
[1728572323934,0.19005433,60641.0,60640.0,0.33337864]
[1728572324409,0.19005433,60641.0,60640.0,0.16847164]
[1728572325364,0.19005433,60641.0,60640.0,0.33337864]
[1728572325365,0.002,60641.0,60640.0,0.33337864]
[1728572325851,0.002,60641.0,60640.0,0.66363297]
[1728572325855,0.24637217,60652.0,60640.0,0.66363297]
[1728572325856,0.24637217,60652.0,60651.0,0.164877]
[1728572326100,0.24637217,60652.0,60651.0,0.32571464]
[1728572326349,0.000817,60663.0,60651.0,0.32571464]
[1728572326350,0.000817,60663.0,60658.0,0.329712]
[1728572326602,0.00083474,60662.0,60661.0,0.16485]
[1728572326848,0.00165174,60663.0,60661.0,0.16083764]
[1728572327100,0.00165174,60663.0,60662.0,0.16083764]
[1728572327341,0.16649674,60663.0,60662.0,0.16083764]
[1728572327807,0.16649674,60663.0,60654.0,0.329738]
[1728572328033,0.16649674,60663.0,60655.0,0.40720981]
[1728572328034,0.00083474,60656.0,60655.0,0.40720981]
[1728572328503,0.18805433,60657.0,60655.0,0.16083764]
[1728572328737,0.00083474,60658.0,60655.0,0.16083764]
[1728572328738,0.18805433,60660.0,60656.0,0.329724]
[1728572328958,0.35290833,60660.0,60657.0,0.16083764]
[1728572329189,0.164858,60658.0,60657.0,0.16083764]
[1728572329424,0.18805433,60660.0,60657.0,0.16083764]
[1728572329644,0.164858,60658.0,60657.0,0.16083764]
[1728572330090,0.16569274,60658.0,60657.0,0.16083764]
[1728572330323,0.00083474,60658.0,60657.0,0.16083764]
[1728572330544,0.001,60658.0,60657.0,0.16783764]
[1728572330765,0.165858,60658.0,60657.0,0.16783764]
[1728572331010,0.16669274,60658.0,60657.0,0.16783764]
[1728572331253,0.16669274,60658.0,60657.0,0.007]
[1728572331254,0.38524915,60658.0,60657.0,0.007]
[1728572331518,0.38524915,60658.0,60657.0,0.014]
[1728572331519,0.46204915,60658.0,60657.0,0.014]
[1728572332455,0.42649274,60658.0,60657.0,0.014]
[1728572332930,0.42549274,60658.0,60657.0,0.007]
[1728572333460,0.00083474,60648.0,60645.0,0.24637217]
[1728572333684,0.16572074,60648.0,60646.0,0.16083764]
[1728572333904,0.16082074,60648.0,60646.0,0.16083764]
[1728572334125,0.164886,60648.0,60646.0,0.16083764]
[1728572334830,0.001,60648.0,60647.0,0.164888]
[1728572335314,0.001,60648.0,60647.0,0.65550164]
[1728572335315,0.001,60648.0,60647.0,0.32572564]
[1728572336250,0.002,60648.0,60647.0,0.32572564]
[1728572336469,0.000818,60652.0,60651.0,0.164877]
[1728572336696,0.000818,60652.0,60651.0,0.32571464]
[1728572337200,0.000818,60652.0,60651.0,0.16083764]
[1728572337673,0.000818,60652.0,60651.0,0.16483764]
[1728572337674,0.165693,60652.0,60651.0,0.16483764]
[1728572337904,0.000818,60652.0,60651.0,0.16483764]
[1728572338155,0.165693,60652.0,60651.0,0.004]
[1728572339570,0.165693,60652.0,60651.0,0.008]
[1728572339808,0.245393,60652.0,60651.0,0.008]
[1728572340048,0.441893,60652.0,60651.0,0.008]
[1728572341309,0.441893,60652.0,60651.0,0.004]
[1728572341570,0.441893,60652.0,60651.0,0.007]
[1728572343647,0.441893,60652.0,60651.0,0.01]
[1728572348566,0.60269961,60652.0,60651.0,0.01]
[1728572348839,0.441893,60652.0,60651.0,0.01]
[1728572349769,0.441893,60652.0,60651.0,0.007]
[1728572350280,0.441893,60652.0,60651.0,0.002]
[1728572350530,0.441893,60652.0,60651.0,0.004]
[1728572351265,0.441893,60652.0,60651.0,0.002]
[1728572351507,0.277018,60652.0,60648.0,0.001636]
[1728572351761,0.35293733,60649.0,60648.0,0.001636]
[1728572352007,0.43493733,60649.0,60648.0,0.001636]
[1728572353971,0.51973854,60649.0,60648.0,0.003636]
[1728572354213,0.43493733,60649.0,60648.0,0.005636]
[1728572357824,0.38537233,60652.0,60648.0,0.16647364]
[1728572358065,0.18887233,60652.0,60650.0,0.164879]
[1728572358307,0.18887233,60652.0,60651.0,0.16083764]
[1728572358540,0.35374733,60652.0,60651.0,0.16083764]
[1728572358779,0.18887233,60652.0,60651.0,0.16083764]
[1728572359263,0.18987233,60652.0,60651.0,0.16083764]
[1728572359482,0.35474733,60652.0,60651.0,0.16083764]
[1728572359724,0.19087233,60652.0,60651.0,0.16083764]
[1728572360416,0.18987233,60652.0,60651.0,0.16083764]
[1728572360672,0.44864021,60652.0,60651.0,0.16083764]
[1728572360899,0.164883,60649.0,60648.0,0.001636]
[1728572361133,0.35623476,60649.0,60648.0,0.001636]
[1728572361354,0.35293733,60649.0,60648.0,0.001636]
[1728572361585,0.35375533,60649.0,60648.0,0.001636]
[1728572362516,0.35475533,60649.0,60648.0,0.005636]
[1728572362744,0.18987233,60649.0,60648.0,0.005636]
[1728572362983,0.19087233,60649.0,60648.0,0.012636]
[1728572363204,0.19087233,60649.0,60648.0,0.03737876]
[1728572363435,0.35575533,60649.0,60648.0,0.03737876]
[1728572363668,0.19087233,60649.0,60648.0,0.03737876]
[1728572363905,0.35575533,60649.0,60648.0,0.03737876]
[1728572364579,0.19087233,60649.0,60648.0,0.03737876]
[1728572364802,0.35575533,60649.0,60648.0,0.05284297]
[1728572365522,0.62025533,60649.0,60648.0,0.012636]
[1728572368640,0.62020065,60649.0,60648.0,0.012636]
[1728572368879,0.432201,60649.0,60648.0,0.012636]
[1728572369130,0.62025533,60649.0,60648.0,0.02810478]
[1728572369605,0.62025533,60649.0,60648.0,0.02810492]
[1728572372269,0.62025533,60649.0,60648.0,0.012636]
[1728572374157,0.62017196,60649.0,60648.0,0.012636]
[1728572382580,0.62017196,60649.0,60648.0,0.18893778]
[1728572382581,0.43211763,60649.0,60648.0,0.18893778]
[1728572382813,0.16761763,60649.0,60648.0,0.18893778]
[1728572383043,0.35567196,60649.0,60648.0,0.18893778]
[1728572383267,0.35567196,60649.0,60648.0,0.1889367]
[1728572385532,0.35567196,60649.0,60648.0,0.02809906]
[1728572386483,0.35567196,60649.0,60648.0,0.012636]
[1728572386707,0.35567196,60649.0,60648.0,0.02809834]
[1728572387166,0.53707196,60649.0,60648.0,0.02809834]
[1728572388611,0.61837196,60649.0,60648.0,0.02809834]
[1728572388823,0.61837196,60649.0,60648.0,0.012636]
[1728572389070,0.61837196,60649.0,60648.0,0.0281006]
[1728572390467,0.81474026,60649.0,60648.0,0.0281006]
[1728572390691,0.81474026,60649.0,60648.0,0.012636]
[1728572390916,0.71837196,60649.0,60648.0,0.012636]
[1728572396643,0.61837196,60649.0,60648.0,0.012636]
[1728572398111,0.80642629,60649.0,60648.0,0.012636]
[1728572398575,0.61837196,60649.0,60648.0,0.012636]
[1728572398802,0.74674226,60649.0,60648.0,0.012636]
[1728572399063,0.74574226,60649.0,60648.0,0.005636]
[1728572399330,0.75074226,60649.0,60648.0,0.005636]
[1728572399559,0.62237196,60649.0,60648.0,0.005636]
[1728572399795,0.61737196,60649.0,60648.0,0.005636]
[1728572400039,0.62237196,60649.0,60648.0,0.005636]
[1728572400724,0.62137196,60649.0,60648.0,0.001636]
[1728572401249,0.62737196,60649.0,60648.0,0.001636]
[1728572401495,0.35967196,60649.0,60648.0,0.001636]
[1728572401742,0.36467196,60649.0,60648.0,0.001636]
[1728572401982,0.62487196,60649.0,60648.0,0.001636]
[1728572402211,0.62287196,60649.0,60648.0,0.001636]
[1728572402465,0.81592629,60649.0,60648.0,0.001636]
[1728572402699,0.83892629,60649.0,60648.0,0.002636]
[1728572402948,0.438702,60642.0,60641.0,0.001636]
[1728572403178,0.81481066,60642.0,60641.0,0.001636]
[1728572403705,0.81981066,60642.0,60641.0,0.001636]
[1728572403934,0.84281066,60642.0,60641.0,0.001636]
[1728572404632,0.84881066,60642.0,60641.0,0.001636]
[1728572405093,1.00961727,60642.0,60641.0,0.001636]
[1728572405334,1.01561727,60642.0,60641.0,0.001636]
[1728572405558,1.01561727,60642.0,60639.0,0.001634]
[1728572405559,0.005,60640.0,60639.0,0.001634]
[1728572405792,0.566107,60640.0,60639.0,0.001634]
[1728572406038,0.567107,60640.0,60639.0,0.001634]
[1728572406296,0.566107,60640.0,60639.0,0.001634]
[1728572406548,0.164937,60629.0,60628.0,0.001636]
[1728572406786,0.54109133,60629.0,60628.0,0.001636]
[1728572407262,0.62309133,60629.0,60628.0,0.001636]
[1728572408699,0.62509133,60629.0,60628.0,0.009636]
[1728572409437,0.62409133,60629.0,60628.0,0.001636]
[1728572409665,0.62509133,60629.0,60628.0,0.007636]
[1728572410865,0.35399133,60629.0,60628.0,0.007636]
[1728572411107,0.329855,60633.0,60630.0,0.164933]
[1728572411108,0.164927,60633.0,60630.0,0.164933]
[1728572411332,0.001,60629.0,60628.0,0.497454]
[1728572411552,0.001,60629.0,60628.0,0.172576]
[1728572411796,0.002,60629.0,60628.0,0.167576]
[1728572412024,0.001,60629.0,60628.0,0.167576]
[1728572412283,0.18805433,60635.0,60632.0,0.164927]
[1728572412519,0.2576,60643.0,60638.0,0.164912]
[1728572412520,0.41127817,60641.0,60638.0,0.164912]
[1728572412752,0.00329743,60640.0,60638.0,0.16083764]
[1728572412986,0.16491,60639.0,60638.0,0.16083764]
[1728572413219,0.32571661,60639.0,60638.0,0.16083764]
[1728572413668,0.16491,60639.0,60638.0,0.16083764]
[1728572415069,0.16491,60639.0,60638.0,0.16283764]
[1728572415300,0.16491,60639.0,60638.0,0.16683764]
[1728572415539,0.16491,60639.0,60638.0,0.16483764]
[1728572416001,0.51786433,60641.0,60639.0,0.16491]
[1728572416002,0.18805433,60641.0,60639.0,0.16491]
[1728572416233,0.18805433,60641.0,60638.0,0.16883764]
[1728572416234,0.68276833,60641.0,60640.0,0.16083764]
[1728572417149,0.35295833,60641.0,60640.0,0.16083764]
[1728572418797,0.35295833,60641.0,60640.0,0.16383764]
[1728572419021,0.35295833,60641.0,60640.0,0.16683764]
[1728572419257,0.35295833,60641.0,60640.0,0.006]
[1728572419258,0.51295306,60641.0,60640.0,0.006]
[1728572419497,0.77685306,60641.0,60640.0,0.006]
[1728572421113,0.77685306,60641.0,60640.0,0.003]
[1728572421343,0.78185306,60641.0,60640.0,0.003]
[1728572421605,0.78185306,60641.0,60627.0,0.001636]
[1728572421606,0.72194906,60641.0,60627.0,0.001636]
[1728572421860,0.62849133,60629.0,60627.0,0.001636]
[1728572422319,0.62849133,60629.0,60628.0,0.001636]
[1728572425020,0.63049133,60629.0,60628.0,0.016636]
[1728572425469,0.43759133,60629.0,60628.0,0.016636]
[1728572425699,0.002,60629.0,60628.0,0.17747364]
[1728572426215,0.19005433,60629.0,60628.0,0.17747364]
[1728572427179,0.19005433,60629.0,60628.0,0.34241364]
[1728572427180,0.002,60629.0,60628.0,0.34241364]
[1728572428591,0.002,60629.0,60628.0,0.36711887]
[1728572428820,0.19005433,60629.0,60628.0,0.20217887]
[1728572429051,0.19005433,60629.0,60628.0,0.17747364]
[1728572429286,0.26925433,60629.0,60628.0,0.17747364]
[1728572429740,0.43419133,60629.0,60628.0,0.17747364]
[1728572430020,0.43419133,60629.0,60628.0,0.34241364]
[1728572430021,0.002,60629.0,60628.0,0.34241364]
[1728572430244,0.002,60629.0,60628.0,0.17747364]
[1728572430506,0.45646126,60629.0,60628.0,0.016636]